bitfinex-derivatives/quotes_ETHF0:USTF0_20250502
["timestamp","ask_amount","ask_price","bid_price","bid_amount"]
[1746172815974,4.30975,1814.5,1814.4,3.696]
[1746172816168,1.10201,1814.4,1814.3,4.9067]
[1746172816369,1.714,1814.4,1813.4,3.2078]
[1746172816570,3.2078,1813.7,1813.5,1.6693]
[1746172816778,3.2078,1813.7,1813.6,4.081]
[1746172816973,3.2078,1813.7,1812.9,0.42183161]
[1746172817185,2.3807,1813.5,1813.1,2.59789]
[1746172817388,2.3807,1813.5,1813.2,46.5671]
[1746172817882,3.2078,1814.0,1813.2,46.5671]
[1746172818080,3.2078,1814.0,1813.2,51.0903]
[1746172818277,4.919,1814.2,1813.2,50.2171]
[1746172818579,4.919,1814.2,1813.4,3.2078]
[1746172818780,4.919,1814.2,1813.5,3.2066]
[1746172818979,6.02115,1814.2,1813.8,1.10233]
[1746172819176,3.2078,1814.4,1813.9,5.7671]
[1746172819488,3.2078,1814.6,1814.3,1.10206]
[1746172819675,1.6169,1814.9,1814.4,5.7681]
[1746172819980,3.2078,1815.0,1814.6,1.10186]
[1746172820174,3.2078,1815.0,1814.5,7.3153]
[1746172820374,3.2078,1815.0,1814.6,2.71725]
[1746172820585,3.2078,1815.0,1814.7,1.6154]
[1746172820883,5.46593622,1815.0,1814.9,1.10167]
[1746172821083,5.46593622,1815.0,1814.7,1.6154]
[1746172821284,5.46593622,1815.0,1814.9,4.79771]
[1746172821582,5.46593622,1815.0,1814.9,44.496]
[1746172821883,5.46593622,1815.0,1814.9,47.6021]
[1746172822278,5.46593622,1815.0,1814.9,48.70381]
[1746172822477,5.46593622,1815.0,1814.9,47.6021]
[1746172822676,5.46593622,1815.0,1814.9,48.70381]
[1746172822878,5.46593622,1815.0,1814.9,47.6021]
[1746172823181,1.10165,1815.0,1814.9,7.1881]
[1746172823375,4.7758,1815.1,1814.9,7.1881]
[1746172823681,3.2078,1815.1,1815.0,1.6808]
[1746172823882,1.10168,1815.0,1814.8,4.082]
[1746172824081,3.2078,1814.9,1814.8,4.082]
[1746172824386,4.30951,1814.9,1814.8,40.8]
[1746172824682,1.10181,1814.8,1814.7,4.082]
[1746172824976,1.10189,1814.6,1813.8,3.2078]
[1746172825182,3.2078,1814.1,1813.8,3.696]
[1746172825374,3.2078,1814.1,1813.9,1.10229]
[1746172825574,3.2078,1814.3,1814.0,45.086]
[1746172825775,4.3099,1814.3,1814.0,45.086]
[1746172825981,3.2078,1814.3,1814.0,46.18825]
[1746172826272,3.2078,1814.3,1814.2,1.10213]
[1746172826484,1.5901,1814.5,1814.2,1.10213]
[1746172826686,1.5901,1814.5,1814.3,1.10205]
[1746172826883,4.8949,1814.6,1814.4,4.286]
[1746172827080,3.2078,1814.8,1814.7,1.10183]
[1746172827387,3.2078,1814.8,1814.5,2.70874]
[1746172827686,3.2078,1814.6,1814.5,1.6068]
[1746172827886,4.30969,1814.6,1814.5,1.6068]
[1746172828087,3.2078,1814.6,1814.4,9.08399]
[1746172828380,3.2078,1814.6,1814.4,4.286]
[1746172828585,2.78908,1814.5,1814.3,4.286]
[1746172828885,1.6871,1814.4,1814.3,4.286]
[1746172829090,3.2078,1814.4,1814.3,5.38807]
[1746172830088,3.2078,1814.4,1814.1,4.286]
[1746172830289,3.2078,1814.4,1814.0,42.2796]
[1746172830491,3.2078,1814.4,1814.0,40.8]
[1746172830684,1.10221,1814.1,1813.9,6.2155]
[1746172830890,1.5973,1814.0,1813.9,6.2155]
[1746172831087,7.69956,1814.0,1813.9,6.2155]
[1746172831291,1.5973,1814.0,1813.9,47.0155]
[1746172831479,2.69956,1814.0,1813.9,47.0155]
[1746172831686,7.69956,1814.0,1813.9,47.0155]
[1746172831893,2.69956,1814.0,1813.9,45.086]
[1746172832087,7.69956,1814.0,1813.9,45.086]
[1746172832393,1.5973,1814.0,1813.8,1.2851]
[1746172832590,4.8675,1813.9,1813.8,1.2851]
[1746172832789,4.8675,1813.9,1813.8,2.38748]
[1746172832981,4.7799,1814.3,1814.0,1.1022]
[1746172833186,5.882,1814.3,1813.8,1.5619]
[1746172833494,4.7799,1814.3,1814.1,1.10218]
[1746172833696,4.7799,1814.3,1814.1,5.38918]
[1746172833990,1.6597,1814.6,1814.3,1.10207]
[1746172833991,3.2078,1814.5,1814.3,1.10207]
[1746172834299,3.2078,1814.4,1814.3,1.10207]
[1746172834490,3.2078,1814.6,1814.5,1.10195]
[1746172834689,3.2078,1814.6,1814.5,5.38895]
[1746172836095,3.2078,1814.6,1814.5,7.983]
[1746172836390,3.2078,1814.6,1814.5,9.08495]
[1746172836896,3.2078,1814.6,1814.5,14.08495]
[1746172837286,1.4666,1815.1,1815.0,1.10165]
[1746172837487,1.4666,1815.1,1815.0,5.38865]
[1746172837687,3.2078,1815.2,1815.1,1.10159]
[1746172837891,5.29254038,1815.3,1815.2,1.10153]
[1746172838094,8.98854038,1815.3,1815.2,1.10153]
[1746172838495,7.29634038,1815.3,1815.2,2.86083]
[1746172838889,7.29634038,1815.3,1815.2,1.10153]
[1746172839297,3.696,1815.3,1815.2,1.10153]
[1746172839598,3.696,1815.3,1815.2,5.38853]
[1746172840297,1.739,1815.5,1815.4,1.10141]
[1746172840498,1.739,1815.5,1815.3,1.10144]
[1746172840701,3.2078,1815.4,1815.3,5.38844]
[1746172841200,6.9038,1815.4,1815.3,46.18844]
[1746172842000,13.00521,1815.4,1815.1,4.287]
[1746172842293,3.2078,1815.2,1815.1,5.38853]
[1746172842497,3.2078,1815.2,1815.1,46.18853]
[1746172842798,4.8171,1815.2,1815.1,43.0764275]
[1746172842991,4.8171,1815.2,1815.1,2.2764275]
[1746172843589,9.8171,1815.2,1814.9,1.10169]
[1746172843795,3.2078,1815.0,1814.9,1.10169]
[1746172844293,4.8171,1815.0,1814.9,1.10169]
[1746172845201,13.5131,1815.0,1814.2,2.75524]
[1746172845500,3.2078,1814.6,1814.3,4.286]
[1746172845701,4.8557,1814.5,1814.4,1.10201]
[1746172846098,3.696,1814.5,1814.4,2.84051]
[1746172846798,3.696,1814.5,1814.4,7.84051]
[1746172847097,3.2078,1814.7,1814.6,1.10189]
[1746172847802,3.2078,1814.7,1814.6,2.73479]
[1746172853295,3.60034038,1815.2,1815.1,1.10159]
[1746172853497,9.46358038,1815.2,1815.0,5.3876]
[1746172853698,8.36204038,1815.2,1815.0,5.3876]
[1746172853907,8.36204038,1815.2,1815.1,1.10159]
[1746172854298,12.05804038,1815.2,1815.1,1.10159]
[1746172854505,13.73104038,1815.2,1815.1,1.10159]
[1746172854807,13.73104038,1815.2,1815.1,2.70159]
[1746172855109,10.52324038,1815.2,1815.1,2.70159]
[1746172855796,8.96934038,1815.2,1815.1,2.70159]
[1746172858410,12.17714038,1815.2,1815.1,2.70159]
[1746172858704,8.96934038,1815.2,1815.1,2.70159]
[1746172861211,5.27334038,1815.2,1815.1,2.70159]
[1746172861508,5.27334038,1815.2,1815.1,1.10159]
[1746172861709,5.27334038,1815.2,1815.1,5.31359]
[1746172866014,2.01549038,1815.2,1815.1,5.31359]
[1746172866213,0.38439038,1815.2,1815.1,5.31359]
[1746172866711,0.38439038,1815.2,1815.1,6.91409]
[1746172867109,1.6906,1815.4,1815.1,6.91409]
[1746172867315,1.6906,1815.4,1815.3,1.10147]
[1746172867709,9.16835314,1815.6,1815.5,1.10134]
[1746172867911,6.3705,1815.6,1815.5,5.31334]
[1746172868110,10.0665,1815.6,1815.5,5.31334]
[1746172868307,8.5944,1815.6,1815.5,5.31334]
[1746172868514,6.9038,1815.6,1815.5,5.31334]
[1746172868817,3.696,1815.6,1815.5,5.31334]
[1746172869310,5.46593622,1815.7,1815.6,1.10128]
[1746172869514,9.10867778,1816.0,1815.9,1.1011]
[1746172869712,9.10867778,1816.0,1815.9,5.3131]
[1746172869914,9.10867778,1816.0,1815.9,46.1131]
[1746172870720,1.7412,1816.2,1816.1,1.10098]
[1746172871022,1.7412,1816.2,1815.9,47.76476]
[1746172871023,3.2078,1816.3,1816.2,1.10092]
[1746172872319,6.9038,1816.3,1816.2,5.31192]
[1746172872819,11.9038,1816.3,1815.9,46.1121]
[1746172873018,3.2078,1816.1,1816.0,1.10104]
[1746172873214,6.9038,1816.1,1816.0,1.10104]
[1746172873615,8.569,1816.1,1816.0,1.10104]
[1746172874711,5.3612,1816.1,1816.0,1.10104]
[1746172874916,5.3612,1816.1,1816.0,2.75254]
[1746172875821,3.696,1816.1,1816.0,2.75254]
[1746172876021,3.696,1816.1,1816.0,4.31804]
[1746172876222,3.2078,1816.3,1816.2,1.10092]
[1746172876820,3.2078,1816.3,1816.2,2.75242]
[1746172877124,6.9038,1816.3,1816.2,1.10092]
[1746172878312,8.5626,1816.3,1816.2,5.31192]
[1746172878918,2.43473,1816.3,1816.2,5.31192]
[1746172879125,3.2078,1816.5,1816.4,1.1008]
[1746172880423,1.6588,1816.6,1816.5,1.10074]
[1746172880623,3.2078,1816.7,1816.6,1.10068]
[1746172880828,3.2078,1816.7,1816.6,5.31068]
[1746172881216,6.9038,1816.7,1816.6,5.31068]
[1746172882325,8.6176,1816.7,1816.6,5.31068]
[1746172883229,8.6176,1816.7,1816.6,1.10068]
[1746172885128,8.6176,1816.7,1816.6,2.71468]
[1746172885826,8.6176,1816.7,1816.6,1.22055436]
[1746172886027,8.6176,1816.7,1816.6,2.32123436]
[1746172886424,5.4098,1816.7,1816.6,2.32123436]
[1746172886828,3.696,1816.7,1816.6,2.32123436]
[1746172887129,3.696,1816.7,1816.6,3.79773436]
[1746172888526,3.696,1816.7,1816.6,7.87873436]
[1746172889833,6.9038,1816.7,1816.6,5.18168]
[1746172890225,5.3485,1816.7,1816.6,5.18168]
[1746172890933,5.3485,1816.7,1816.6,1.10068]
[1746172891234,5.3485,1816.7,1816.6,5.18168]
[1746172891935,5.3485,1816.7,1816.6,1.10068]
[1746172892230,5.3485,1816.7,1816.6,5.18168]
[1746172893131,5.3485,1816.7,1816.6,6.84328]
[1746172894035,5.3485,1816.7,1816.6,2.76228]
[1746172894329,5.3485,1816.7,1816.6,6.84228]
[1746172894525,3.696,1816.7,1816.6,6.84228]
[1746172894723,2.57461,1816.7,1816.6,8.32998]
[1746172894921,0.99730118,1816.7,1816.6,13.32998]
[1746172895129,1.18e-06,1816.7,1816.6,13.32998]
[1746172895329,3.2294,1817.3,1817.2,1.10031]
[1746172895530,1.522,1817.3,1817.2,5.18031]
[1746172896229,5.218,1817.3,1817.2,5.72911]
[1746172896835,6.31825,1817.3,1817.2,5.72911]
[1746172897035,6.31825,1817.3,1817.2,4.6288]
[1746172897337,6.31825,1817.3,1817.2,5.72911]
[1746172897731,11.31825,1817.3,1817.2,4.6288]
[1746172898036,11.31825,1817.3,1817.2,0.5488]
[1746172898937,11.76535579,1817.3,1817.2,0.5488]
[1746172899234,16.25380893,1817.3,1817.2,0.5488]
[1746172899633,16.25397043,1817.3,1817.2,0.5488]
[1746172899931,16.25397377,1817.3,1817.2,0.5488]
[1746172900233,16.25397406,1817.3,1817.2,0.5488]
[1746172901240,16.95566666,1817.3,1817.2,0.5488]
[1746172901430,1.10043,1817.1,1816.9,41.90045]
[1746172901630,3.2078,1817.0,1816.9,41.90045]
[1746172902146,6.9038,1817.0,1816.9,41.90045]
[1746172902847,6.9038,1817.0,1816.8,5.18052]
[1746172903142,1.5771,1816.9,1816.8,5.18052]
[1746172903343,1.5771,1816.9,1816.8,41.90052]
[1746172903846,2.6776,1816.9,1816.8,40.8]
[1746172904142,6.3736,1816.9,1816.8,40.8]
[1746172904343,5.2731,1816.9,1816.8,40.8]
[1746172904546,6.3736,1816.9,1816.8,40.8]
[1746172905845,1.1006,1816.8,1816.6,5.18064]
[1746172906145,3.2078,1816.7,1816.6,5.18064]
[1746172906345,3.2078,1816.7,1816.6,41.7703407]
[1746172906534,3.2078,1816.7,1816.6,42.8709907]
[1746172906738,4.30842,1816.7,1816.6,41.7703407]
[1746172906939,4.30842,1816.7,1816.6,40.8]
[1746172907146,6.9038,1816.7,1816.6,41.90068]
[1746172908448,8.00442,1816.7,1816.6,41.90068]
[1746172908746,6.9038,1816.7,1816.6,41.90068]
[1746172909647,6.9038,1816.7,1816.6,43.61288]
[1746172911950,3.696,1816.7,1816.6,43.61288]
[1746172913548,3.696,1816.7,1816.6,47.69288]
[1746172916550,3.696,1816.7,1816.6,43.61288]
[1746172916746,3.696,1816.7,1816.6,47.55688]
[1746172926349,8.7320754,1817.2,1816.9,1.1005]
[1746172926550,7.2515754,1817.2,1817.1,1.10037]
[1746172927155,10.9475754,1817.2,1817.1,2.85037]
[1746172927455,1.1004,1817.1,1816.9,1.10046]
[1746172927655,1.5262,1817.0,1816.9,1.10046]
[1746172928361,3.2256,1817.0,1816.9,1.10046]
[1746172928953,3.2256,1817.0,1816.9,2.85046]
[1746172929155,6.9216,1817.0,1816.9,2.85046]
[1746172929452,2.23696,1817.0,1816.9,2.85046]
[1746172929656,0.62028,1817.0,1816.9,7.85046]
[1746172929857,1e-05,1817.0,1816.9,7.85046]
[1746172930158,7.2515754,1817.1,1817.0,1.10044]
[1746172930355,7.2515754,1817.1,1817.0,2.74024]
[1746172931258,10.9475754,1817.1,1817.0,2.74024]
[1746172931960,7.8524254,1817.1,1817.0,5.94804]
[1746172932162,3.0440554,1817.1,1817.0,5.94804]
[1746172932362,1.6384,1817.4,1817.3,1.10025]
[1746172932563,1.6384,1817.4,1817.3,5.04325]
[1746172933254,5.3344,1817.4,1817.3,5.04325]
[1746172934469,3.696,1817.4,1817.3,5.04325]
[1746172934963,5.3471,1817.4,1817.3,5.04325]
[1746172935869,3.696,1817.4,1817.3,5.04325]
[1746172937364,3.696,1817.4,1817.3,5.36736696]
[1746172937565,3.696,1817.4,1817.3,5.04325]
[1746172937873,3.696,1817.4,1817.3,1.10025]
[1746172938076,3.696,1817.4,1817.3,45.84325]
[1746172938370,7.0246,1817.4,1817.3,45.84325]
[1746172938568,7.0246,1817.4,1817.3,41.90025]
[1746172938768,8.12479,1817.4,1817.3,44.743]
[1746172939070,7.0246,1817.4,1817.3,45.84325]
[1746172939470,8.12479,1817.4,1817.3,44.743]
[1746172939770,12.0246,1817.4,1817.2,5.04327]
[1746172939967,4.8956,1817.3,1817.2,5.04327]
[1746172940164,8.5916,1817.3,1817.2,45.84327]
[1746172940566,9.69185,1817.3,1817.2,40.8]
[1746172940874,1.10035,1817.2,1817.0,5.04342]
[1746172941071,3.2078,1817.1,1817.0,1.10042]
[1746172941472,4.8956,1817.1,1817.0,1.10042]
[1746172942065,5.3838,1817.1,1817.0,1.10042]
[1746172942466,8.5916,1817.1,1817.0,1.10042]
[1746172942873,9.69197,1817.1,1817.0,5.04342]
[1746172943171,5.3838,1817.1,1817.0,5.04342]
[1746172944166,5.3838,1817.1,1817.0,8.32312]
[1746172944671,8.5916,1817.1,1817.0,5.04342]
[1746172945266,9.69197,1817.1,1817.0,5.04342]
[1746172945468,9.69197,1817.1,1817.0,3.943]
[1746172945774,9.69197,1817.1,1817.0,5.04344]
[1746172945975,8.5916,1817.1,1817.0,5.04344]
[1746172946167,5.3838,1817.1,1817.0,5.04344]
[1746172946474,9.69197,1817.1,1817.0,5.04344]
[1746172947471,8.5916,1817.1,1817.0,5.04344]
[1746172948674,5.3838,1817.1,1817.0,5.04344]
[1746172949375,8.5916,1817.1,1817.0,5.04344]
[1746172950975,6.9038,1817.1,1817.0,5.04344]
[1746172951168,8.5192,1817.1,1817.0,5.04344]
[1746172951575,5.3114,1817.1,1817.0,5.04344]
[1746172952575,3.696,1817.1,1817.0,5.04344]
[1746172952777,3.696,1817.1,1817.0,8.24014]
[1746172955764,5.4154,1817.1,1817.0,8.24014]
[1746172957371,3.696,1817.1,1817.0,8.24014]
[1746172960184,3.696,1817.1,1817.0,1.10044]
[1746172960484,6.9038,1817.1,1817.0,4.98144]
[1746172960683,8.5299,1817.1,1817.0,4.98144]
[1746172962884,5.3221,1817.1,1817.0,4.98144]
[1746172964683,3.696,1817.1,1817.0,4.98144]
[1746172965487,3.696,1817.1,1817.0,6.64304]
[1746172966487,2.02291,1817.1,1817.0,11.64304]
[1746172967185,7.07426912,1817.4,1817.3,1.10025]
[1746172967387,7.07426912,1817.4,1817.3,4.98125]
[1746172968079,10.77026912,1817.4,1817.3,4.98125]
[1746172968989,5.2951,1817.4,1817.3,4.98125]
[1746172970188,5.2951,1817.4,1817.3,3.53912312]
[1746172970588,6.39529,1817.4,1817.3,4.63937312]
[1746172970793,5.2951,1817.4,1817.3,4.63937312]
[1746172971081,3.696,1817.4,1817.3,4.63937312]
[1746172971275,3.696,1817.4,1817.3,6.23577312]
[1746172971887,4.39750409,1817.4,1817.3,6.23577312]
[1746172974086,4.39750409,1817.4,1817.3,11.23577312]
[1746172974587,4.39750409,1817.4,1817.3,52.03577312]
[1746172975179,0.70150409,1817.4,1817.3,52.03577312]
[1746172975887,5.47516912,1817.6,1817.5,1.10013]
[1746172976089,9.17116912,1817.6,1817.5,1.10013]
[1746172976480,9.17116912,1817.6,1817.5,43.56013]
[1746172978089,5.47516912,1817.6,1817.5,43.56013]
[1746172979679,5.47516912,1817.6,1817.5,43.90432885]
[1746172980286,1.6783,1817.7,1817.6,1.10007]
[1746172980494,3.2078,1817.8,1817.7,1.10001]
[1746172980694,4.8071,1817.8,1817.7,1.10001]
[1746172980889,3.2078,1817.8,1817.7,43.60311]
[1746172981089,6.9038,1817.8,1817.7,43.60311]
[1746172981287,8.4954,1817.8,1817.7,43.60311]
[1746172981895,5.2876,1817.8,1817.7,43.60311]
[1746172982093,8.4954,1817.8,1817.7,43.60311]
[1746172982885,14.59539,1817.8,1817.6,1.10003]
[1746172983093,2.69161,1817.7,1817.5,4.8901]
[1746172983291,3.3155,1817.6,1817.5,4.8901]
[1746172983493,6.10798,1817.6,1817.5,3.79]
[1746172983682,5.0079,1817.6,1817.5,4.89013]
[1746172984193,8.7039,1817.6,1817.5,4.89013]
[1746172985093,1.10016,1817.5,1817.3,40.8]
[1746172985296,3.2078,1817.4,1817.3,41.90025]
[1746172985488,3.2078,1817.4,1817.3,45.69025]
[1746172986095,6.9038,1817.4,1817.3,45.69025]
[1746172988786,8.514,1817.4,1817.3,45.69025]
[1746172989990,3.696,1817.4,1817.3,45.69025]
[1746172990193,3.63921983,1817.5,1817.4,1.10019]
[1746172990496,3.63921983,1817.5,1817.4,4.40619]
[1746172991198,3.63921983,1817.5,1817.4,45.20619]
[1746172992300,8.57331983,1817.7,1817.6,1.10007]
[1746172992498,8.57331983,1817.7,1817.6,4.89007]
[1746172993200,12.26931983,1817.7,1817.6,45.69007]
[1746172994487,10.54301983,1817.7,1817.6,45.69007]
[1746172994693,10.54301983,1817.7,1817.6,47.33387]
[1746172994887,12.13981983,1817.7,1817.6,47.33387]
[1746172996502,10.54301983,1817.7,1817.6,47.33387]
[1746172996797,6.9038,1817.7,1817.6,47.33387]
[1746172996998,8.5106,1817.7,1817.6,47.33387]
[1746172997300,4.8146,1817.7,1817.6,47.33387]
[1746172998002,3.2078,1817.7,1817.6,47.33387]
[1746172999103,8.45381983,1817.8,1817.7,1.10001]
[1746172999302,4.8146,1817.8,1817.7,4.47111]
[1746173001398,3.2078,1817.8,1817.7,2.82131]
[1746173001598,3.63921983,1817.9,1817.8,1.09995]
[1746173002103,7.33521983,1817.9,1817.8,1.09995]
[1746173003404,8.43510983,1817.9,1817.6,40.8]
[1746173003706,4.8484,1817.8,1817.7,4.89001]
[1746173003902,5.94835,1817.8,1817.7,1.10001]
[1746173004096,13.9848252,1817.8,1817.4,3.79]
[1746173004295,3.2078,1817.5,1817.2,4.89028]
[1746173004509,3.2078,1817.3,1817.2,4.89028]
[1746173004702,3.2078,1817.3,1817.2,45.69028]
[1746173005205,6.9038,1817.3,1817.2,45.69028]
[1746173007607,8.00405,1817.3,1817.2,45.69028]
[1746173007810,6.9038,1817.3,1817.2,45.69028]
[1746173008007,8.00405,1817.3,1817.2,40.8]
[1746173008201,1.10039,1817.1,1816.9,2.73395]
[1746173008401,1.669,1817.0,1816.9,2.73395]
[1746173008604,1.669,1817.0,1816.9,47.32395]
[1746173009110,5.365,1817.0,1816.9,47.32395]
[1746173010210,5.365,1817.0,1816.9,43.53395]
[1746173010516,5.365,1817.0,1816.9,45.6265]
[1746173011911,6.46544,1817.0,1816.9,45.6265]
[1746173012112,6.46544,1817.0,1816.9,44.526]
[1746173012313,1.10068,1816.6,1816.5,4.82772]
[1746173012511,1.10068,1816.6,1816.4,1.10076]
[1746173012815,1.6156,1816.5,1816.4,4.8278]
[1746173013216,5.3116,1816.5,1816.4,45.6278]
[1746173013517,6.41234,1816.5,1816.4,45.6278]
[1746173013712,5.3116,1816.5,1816.4,45.6278]
[1746173014311,6.41234,1816.5,1816.4,45.6278]
[1746173014513,9.62014,1816.5,1816.4,40.8]
[1746173017112,11.34474,1816.5,1816.4,40.8]
[1746173018713,16.34474,1816.5,1816.4,40.8]
[1746173019015,1.10097,1816.2,1816.1,3.728]
[1746173019215,4.30877,1816.2,1816.1,3.728]
[1746173019410,4.30877,1816.2,1816.1,44.528]
[1746173020013,3.2078,1816.2,1816.1,45.62898]
[1746173020311,3.696,1816.2,1815.7,51.442]
[1746173020516,3.2078,1815.9,1815.8,3.728]
[1746173020817,3.2078,1815.9,1815.8,47.24866]
[1746173021212,3.696,1815.9,1815.8,47.24866]
[1746173022220,3.2078,1816.4,1816.3,1.10086]
[1746173022718,4.8698,1816.4,1816.3,1.10086]
[1746173022920,4.8698,1816.4,1816.3,2.72036]
[1746173023116,6.9038,1816.4,1816.3,2.72036]
[1746173023313,3.696,1816.4,1816.3,2.72036]
[1746173023508,3.696,1816.4,1816.3,4.42006]
[1746173023712,3.696,1816.4,1816.3,45.22006]
[1746173023921,3.696,1816.4,1816.3,48.94806]
[1746173024622,4.7968,1816.4,1816.3,46.2277]
[1746173024820,8.6566,1816.4,1816.3,47.32856]
[1746173025317,5.4488,1816.4,1816.3,47.32856]
[1746173025728,3.696,1816.4,1816.3,47.32856]
[1746173027315,2.85354,1816.5,1816.4,1.1008]
[1746173027516,1.7528,1816.5,1816.4,2.7453]
[1746173028019,1.7528,1816.5,1816.4,1.6445]
[1746173028222,6.54954,1816.5,1816.3,47.32854]
[1746173028523,5.4488,1816.5,1816.4,1.1008]
[1746173028820,6.54954,1816.5,1816.4,1.1008]
[1746173029324,5.4488,1816.5,1816.4,1.1008]
[1746173029520,5.4488,1816.5,1816.4,4.3921]
[1746173029822,6.54954,1816.5,1816.4,4.3921]
[1746173030124,5.4488,1816.5,1816.4,4.3921]
[1746173030623,1.10089,1816.3,1816.1,1.10093]
[1746173030817,1.10096,1816.2,1816.0,5.932]
[1746173031017,2.80696,1816.2,1816.1,1.10098]
[1746173031323,5.402,1816.2,1816.0,10.4906]
[1746173031516,6.50295,1816.2,1816.0,10.4906]
[1746173031922,1.10098,1816.1,1816.0,10.4906]
[1746173032123,6.01478,1816.1,1816.0,10.4906]
[1746173032425,8.6098,1816.1,1816.0,10.4906]
[1746173032927,6.9038,1816.1,1816.0,10.4906]
[1746173033628,3.696,1816.1,1816.0,10.4906]
[1746173034228,4.30855,1816.5,1816.3,1.10083]
[1746173034527,4.30855,1816.5,1816.4,3.729]
[1746173034725,1.10082,1816.4,1816.2,1.10088]
[1746173035027,1.10086,1816.3,1816.2,1.7401]
[1746173035226,1.10086,1816.3,1816.2,5.4691]
[1746173035425,2.83116,1816.3,1816.2,6.57002]
[1746173035931,1.7303,1816.3,1816.2,1.7401]
[1746173036129,5.4263,1816.3,1816.2,5.4691]
[1746173036328,5.4263,1816.3,1816.2,6.57002]
[1746173036727,6.52716,1816.3,1816.2,6.57002]
[1746173037230,5.4263,1816.3,1816.2,6.57002]
[1746173037431,3.696,1816.3,1816.2,6.57002]
[1746173040130,3.2078,1816.4,1816.2,6.57002]
[1746173040131,3.2078,1816.4,1816.3,1.10086]
[1746173040331,3.2078,1816.4,1816.3,2.89716]
[1746173040537,3.2078,1816.4,1816.3,4.56836]
[1746173041132,6.9038,1816.4,1816.3,4.56836]
[1746173041526,6.9038,1816.4,1815.9,3.2078]
[1746173041527,11.9038,1816.4,1815.9,3.2078]
[1746173041728,3.2078,1816.0,1815.2,8.2601]
[1746173042027,4.30904,1815.7,1815.5,1.10131]
[1746173042226,1.10129,1815.6,1815.4,4.81237]
[1746173042430,3.2078,1815.5,1815.4,4.81237]
[1746173042631,4.30907,1815.7,1815.4,4.81237]
[1746173043029,4.30907,1815.7,1815.5,1.10134]
[1746173043228,8.00507,1815.7,1815.5,1.10134]
[1746173043834,6.9038,1815.7,1815.5,1.10134]
[1746173044031,8.00504,1815.7,1815.5,1.10134]
[1746173044433,6.9038,1815.7,1815.4,4.81237]
[1746173044824,6.9038,1815.7,1815.5,1.10132]
[1746173045027,1.7537,1815.6,1815.5,1.10132]
[1746173045735,6.9038,1815.7,1815.6,1.10128]
[1746173045935,6.9038,1815.7,1815.6,1.7495]
[1746173046427,9.75872,1815.7,1815.6,1.7495]
[1746173046633,8.6575,1815.7,1815.6,1.7495]
[1746173046832,8.6575,1815.7,1815.6,2.85078]
[1746173050743,5.4497,1815.7,1815.6,2.85078]
[1746173051334,8.6575,1815.7,1815.6,2.85078]
[1746173052240,5.4497,1815.7,1815.6,2.85078]
[1746173052638,3.696,1815.7,1815.6,2.85078]
[1746173052844,3.696,1815.7,1815.6,4.65318]
[1746173053142,6.07592,1815.9,1815.7,1.10117]
[1746173053342,6.07592,1815.9,1815.7,6.48387]
[1746173053539,1.768,1815.8,1815.7,6.48387]
[1746173053847,2.86916,1815.8,1815.7,5.3827]
[1746173054039,2.86916,1815.8,1815.7,6.48392]
[1746173054241,5.464,1815.8,1815.7,6.48392]
[1746173054542,6.56516,1815.8,1815.7,6.48392]
[1746173055344,5.464,1815.8,1815.7,6.48392]
[1746173059249,3.696,1815.8,1815.7,6.48392]
[1746173060147,4.9247,1815.9,1815.8,1.10116]
[1746173060852,4.9247,1815.9,1815.8,2.79656]
[1746173061153,8.6207,1815.9,1815.8,2.79656]
[1746173063156,4.9247,1815.9,1815.8,2.79656]
[1746173064153,8.6207,1815.9,1815.8,2.79656]
[1746173065048,9.7218,1815.9,1815.7,4.81218]
[1746173065250,2.79676,1815.8,1815.7,4.81218]
[1746173065445,4.61406,1815.8,1815.7,4.81218]
[1746173066157,8.31006,1815.8,1815.7,4.81218]
[1746173067352,7.2089,1815.8,1815.7,4.81218]
[1746173068056,5.3916,1815.8,1815.7,4.81218]
[1746173068257,3.696,1815.8,1815.7,6.55098]
[1746173069159,3.2078,1815.9,1815.8,1.10116]
[1746173069351,3.2078,1815.9,1815.8,2.92226]
[1746173070161,6.9038,1815.9,1815.8,2.92226]
[1746173073261,3.696,1815.9,1815.8,2.92226]
[1746173075165,8.50561983,1816.1,1816.0,1.10104]
[1746173075462,8.50561983,1816.1,1816.0,4.81204]
[1746173076166,12.20161983,1816.1,1816.0,4.81204]
[1746173078557,12.90365934,1816.1,1816.0,4.81204]
[1746173081666,14.00463934,1816.1,1816.0,4.81204]
[1746173081859,14.00463934,1816.1,1816.0,3.711]
[1746173082058,14.00463934,1816.1,1816.0,4.81204]
[1746173082668,13.30259983,1816.1,1816.0,4.81204]
[1746173083768,13.30259983,1816.1,1816.0,3.711]
[1746173084663,19.95409983,1816.1,1815.6,5.932]
[1746173084867,1.10122,1815.7,1815.6,9.643]
[1746173085369,4.79722,1815.7,1815.6,9.643]
[1746173085661,4.79722,1815.7,1815.6,10.74427]
[1746173085867,7.2237,1815.7,1815.6,10.74427]
[1746173086564,8.32492,1815.7,1815.6,10.74427]
[1746173087871,7.2237,1815.7,1815.6,10.74427]
[1746173089870,7.2237,1815.7,1815.6,4.81227]
[1746173090064,10.86291983,1815.7,1815.6,4.81227]
[1746173093872,11.96413983,1815.7,1815.6,3.711]
[1746173094368,21.82380983,1815.7,1815.4,3.711]